{"text_format":"3","workbook":"xlsx","n_sheets":4,"sheets":["สรุป","ทรัพย์สิน","หนี้สิน","ประเภท"],"not_rendered":{"defined_names":10},"read":"whole","date_system":"1900"}

{"sheet":"สรุป","index":0,"n_rows":12,"n_cols":4,"rows_kept":12}
[null,"งบดุล"]
[null,null,{"$f":"\"ปีงบประมาณ-\"&YEAR(TODAY())-1","v":"ปีงบประมาณ-2016"},{"$f":"\"ปีงบประมาณ-\"&YEAR(TODAY())","v":"ปีงบประมาณ-2017"}]
[null,"ชนิดของทรัพย์สิน","ปีก่อนหน้า","ปีปัจจุบัน"]
[null,"ทรัพย์สินปัจจุบัน",{"$f":"SUMIFS(ทรัพย์สิน[ปีก่อนหน้า],ทรัพย์สิน[ชนิดของทรัพย์สิน],แดชบอร์ด[[#This Row],[ชนิดของทรัพย์สิน]])+SUMIFS(หนี้สิน[ปีก่อนหน้า],หนี้สิน[ชนิดของหนี้สิน],แดชบอร์ด[[#This Row],[ชนิดของทรัพย์สิน]])","v":600},{"$f":"SUMIFS(ทรัพย์สิน[ปีปัจจุบัน],ทรัพย์สิน[ชนิดของทรัพย์สิน],แดชบอร์ด[[#This Row],[ชนิดของทรัพย์สิน]])+SUMIFS(หนี้สิน[ปีปัจจุบัน],หนี้สิน[ชนิดของหนี้สิน],แดชบอร์ด[[#This Row],[ชนิดของทรัพย์สิน]])","v":600}]
[null,"ทรัพย์สินถาวร",{"$f":"SUMIFS(ทรัพย์สิน[ปีก่อนหน้า],ทรัพย์สิน[ชนิดของทรัพย์สิน],แดชบอร์ด[[#This Row],[ชนิดของทรัพย์สิน]])+SUMIFS(หนี้สิน[ปีก่อนหน้า],หนี้สิน[ชนิดของหนี้สิน],แดชบอร์ด[[#This Row],[ชนิดของทรัพย์สิน]])","v":{"v":-100,"d":"-100 "}},{"$f":"SUMIFS(ทรัพย์สิน[ปีปัจจุบัน],ทรัพย์สิน[ชนิดของทรัพย์สิน],แดชบอร์ด[[#This Row],[ชนิดของทรัพย์สิน]])+SUMIFS(หนี้สิน[ปีปัจจุบัน],หนี้สิน[ชนิดของหนี้สิน],แดชบอร์ด[[#This Row],[ชนิดของทรัพย์สิน]])","v":{"v":-85,"d":"-85 "}}]
[null,"สินทรัพย์อื่นๆ",{"$f":"SUMIFS(ทรัพย์สิน[ปีก่อนหน้า],ทรัพย์สิน[ชนิดของทรัพย์สิน],แดชบอร์ด[[#This Row],[ชนิดของทรัพย์สิน]])+SUMIFS(หนี้สิน[ปีก่อนหน้า],หนี้สิน[ชนิดของหนี้สิน],แดชบอร์ด[[#This Row],[ชนิดของทรัพย์สิน]])","v":0},{"$f":"SUMIFS(ทรัพย์สิน[ปีปัจจุบัน],ทรัพย์สิน[ชนิดของทรัพย์สิน],แดชบอร์ด[[#This Row],[ชนิดของทรัพย์สิน]])+SUMIFS(หนี้สิน[ปีปัจจุบัน],หนี้สิน[ชนิดของหนี้สิน],แดชบอร์ด[[#This Row],[ชนิดของทรัพย์สิน]])","v":0}]
[null,"หนี้สินปัจจุบัน",{"$f":"SUMIFS(ทรัพย์สิน[ปีก่อนหน้า],ทรัพย์สิน[ชนิดของทรัพย์สิน],แดชบอร์ด[[#This Row],[ชนิดของทรัพย์สิน]])+SUMIFS(หนี้สิน[ปีก่อนหน้า],หนี้สิน[ชนิดของหนี้สิน],แดชบอร์ด[[#This Row],[ชนิดของทรัพย์สิน]])","v":500},{"$f":"SUMIFS(ทรัพย์สิน[ปีปัจจุบัน],ทรัพย์สิน[ชนิดของทรัพย์สิน],แดชบอร์ด[[#This Row],[ชนิดของทรัพย์สิน]])+SUMIFS(หนี้สิน[ปีปัจจุบัน],หนี้สิน[ชนิดของหนี้สิน],แดชบอร์ด[[#This Row],[ชนิดของทรัพย์สิน]])","v":350}]
[null,"หนี้สินระยะยาว",{"$f":"SUMIFS(ทรัพย์สิน[ปีก่อนหน้า],ทรัพย์สิน[ชนิดของทรัพย์สิน],แดชบอร์ด[[#This Row],[ชนิดของทรัพย์สิน]])+SUMIFS(หนี้สิน[ปีก่อนหน้า],หนี้สิน[ชนิดของหนี้สิน],แดชบอร์ด[[#This Row],[ชนิดของทรัพย์สิน]])","v":0},{"$f":"SUMIFS(ทรัพย์สิน[ปีปัจจุบัน],ทรัพย์สิน[ชนิดของทรัพย์สิน],แดชบอร์ด[[#This Row],[ชนิดของทรัพย์สิน]])+SUMIFS(หนี้สิน[ปีปัจจุบัน],หนี้สิน[ชนิดของหนี้สิน],แดชบอร์ด[[#This Row],[ชนิดของทรัพย์สิน]])","v":0}]
[null,"ส่วนของเจ้าของ",{"$f":"SUMIFS(ทรัพย์สิน[ปีก่อนหน้า],ทรัพย์สิน[ชนิดของทรัพย์สิน],แดชบอร์ด[[#This Row],[ชนิดของทรัพย์สิน]])+SUMIFS(หนี้สิน[ปีก่อนหน้า],หนี้สิน[ชนิดของหนี้สิน],แดชบอร์ด[[#This Row],[ชนิดของทรัพย์สิน]])","v":0},{"$f":"SUMIFS(ทรัพย์สิน[ปีปัจจุบัน],ทรัพย์สิน[ชนิดของทรัพย์สิน],แดชบอร์ด[[#This Row],[ชนิดของทรัพย์สิน]])+SUMIFS(หนี้สิน[ปีปัจจุบัน],หนี้สิน[ชนิดของหนี้สิน],แดชบอร์ด[[#This Row],[ชนิดของทรัพย์สิน]])","v":350}]
[null,"ทรัพย์สินทั้งหมด",{"$f":"ทรัพย์สิน[[#Totals],[ปีก่อนหน้า]]","v":500},{"$f":"ทรัพย์สิน[[#Totals],[ปีปัจจุบัน]]","v":515}]
[null,"หนี้สินและส่วนของเจ้าของทั้งหมด",{"$f":"หนี้สิน[[#Totals],[ปีก่อนหน้า]]","v":500},{"$f":"หนี้สิน[[#Totals],[ปีปัจจุบัน]]","v":700}]
[null,"ยอดคงเหลือ",{"$f":"C10-C11","v":0},{"$f":"D10-D11","v":{"v":-185,"d":"-185 "}}]

{"sheet":"ทรัพย์สิน","index":1,"n_rows":14,"n_cols":5,"rows_kept":14}
[null,"ทรัพย์สิน"]
[{"$nulls":3},{"$f":"FY_YEAR","v":"ปีงบประมาณ-2016"},{"$f":"FY_YEAR_2","v":"ปีงบประมาณ-2017"}]
[null,"ชนิดของทรัพย์สิน","คำอธิบาย","ปีก่อนหน้า","ปีปัจจุบัน"]
[null,"ทรัพย์สินปัจจุบัน","เงินสด",600,600]
[null,"ทรัพย์สินปัจจุบัน","การลงทุน"]
[null,"ทรัพย์สินปัจจุบัน","สินค้าคงคลัง"]
[null,"ทรัพย์สินปัจจุบัน","ลูกหนี้การค้า"]
[null,"ทรัพย์สินปัจจุบัน","ค่าใช้จ่ายที่ชำระเงินล่วงหน้า"]
[null,"ทรัพย์สินถาวร","ทรัพย์สินและอุปกรณ์"]
[null,"ทรัพย์สินถาวร","การปรับปรุงสิทธิในที่ดิน"]
[null,"ทรัพย์สินถาวร","ส่วนของเจ้าของและการลงทุนอื่นๆ"]
[null,"ทรัพย์สินถาวร","ค่าเสื่อมราคาสะสมน้อยลง (ค่าลบ)",{"v":-100,"d":"-100 "},{"v":-85,"d":"-85 "}]
[null,"สินทรัพย์อื่นๆ","การกุศล"]
[null,"ทรัพย์สินทั้งหมด",null,{"$f":"SUBTOTAL(109,ทรัพย์สิน[ปีก่อนหน้า])","v":500},{"$f":"SUBTOTAL(109,ทรัพย์สิน[ปีปัจจุบัน])","v":515}]

{"sheet":"หนี้สิน","index":2,"n_rows":12,"n_cols":5,"rows_kept":12}
[null,"หนี้สิน"]
[{"$nulls":3},{"$f":"FY_YEAR","v":"ปีงบประมาณ-2016"},{"$f":"FY_YEAR_2","v":"ปีงบประมาณ-2017"}]
[null,"ชนิดของหนี้สิน","คำอธิบาย","ปีก่อนหน้า","ปีปัจจุบัน"]
[null,"หนี้สินปัจจุบัน","เจ้าหนี้การค้า",null,350]
[null,"หนี้สินปัจจุบัน","ค่าจ้างค้างจ่าย"]
[null,"หนี้สินปัจจุบัน","ค่าชดเชยค้างจ่าย",500]
[null,"หนี้สินปัจจุบัน","ภาษีเงินได้ค้างจ่าย"]
[null,"หนี้สินปัจจุบัน","รายได้รับล่วงหน้า"]
[null,"หนี้สินระยะยาว","เจ้าหนี้จำนอง"]
[null,"ส่วนของเจ้าของ","การลงทุนระยะยาว",null,350]
[null,"ส่วนของเจ้าของ","กำไรสะสม"]
[null,"หนี้สินและส่วนของเจ้าของทั้งหมด",null,{"$f":"SUBTOTAL(109,หนี้สิน[ปีก่อนหน้า])","v":500},{"$f":"SUBTOTAL(109,หนี้สิน[ปีปัจจุบัน])","v":700}]

{"sheet":"ประเภท","index":3,"n_rows":9,"n_cols":2,"rows_kept":9}
[null,"ประเภท"]
[]
[null,"ประเภท"]
[null,"ทรัพย์สินปัจจุบัน"]
[null,"ทรัพย์สินถาวร"]
[null,"สินทรัพย์อื่นๆ"]
[null,"หนี้สินปัจจุบัน"]
[null,"หนี้สินระยะยาว"]
[null,"ส่วนของเจ้าของ"]